[Event "EYCC Girls-U12 2019"]
[Site "Bratislava"]
[Date "2019.08.01"]
[Round "1.1"]
[White "Kasperek, Ryszard"]
[Black "Sloniec, Natalia"]
[Result "1-0"]
[ECO "C00"]
[WhiteElo "2174"]
[BlackElo "1090"]
[Annotator "ChessBase"]
[PlyCount "34"]
[EventDate "2019.08.02"]
[EventType "swiss"]
[EventCountry "SVK"]
[SourceTitle "playchess.com"]
[Source "ChessBase"]
[SourceQuality "1"]
[TimeControl "40/5400+30:1800+30"]

1. e4 e6 2. d4 d5 3. Nf3 dxe4 4. Nfd2 f5 5. f3 exf3 6. Nxf3 Nf6 7. c3 c5 8. Bc4 Nc6 9. O-O cxd4 10. Nxd4 Nxd4 11. Qxd4 Qxd4+ 12. cxd4 Bd6 13. Nc3 Ne4 14. Nxe4 fxe4 15. Bf4 Bxf4 16. Rxf4 Bd7 17. Rxe4 {[%emt 0:09:09]} O-O {[%emt 0:07:30]} 1-0

[Event "EYCC Girls-U12 2019"]
[Site "Bratislava"]
[Date "2019.08.02"]
[Round "1.3"]
[White "Mosurovic, Milena"]
[Black "Shvedova, Alexandra"]
[Result "0-1"]
[ECO "B53"]
[WhiteElo "1445"]
[BlackElo "1932"]
[Annotator "NA"]
[PlyCount "52"]
[EventDate "2019.08.02"]
[EventType "swiss"]
[EventCountry "SVK"]
[SourceTitle "playchess.com"]
[Source "ChessBase"]
[SourceQuality "1"]
[TimeControl "40/5400+30:1800+30"]

1. e4 {[%emt 0:00:00]} c5 {[%emt 0:00:00]} 2. Nf3 {[%emt 0:00:00]} d6 {[%emt 0:00:00]} 3. d4 {[%emt 0:00:00]} cxd4 {[%emt 0:00:00]} 4. Qxd4 {[%emt 0:00:00]} Nc6 {[%emt 0:00:16]} 5. Qe3 {[%emt 0:00:00]} Nf6 {[%emt 0:00:58]} 6. h3 {[%emt 0:00:32]} e6 {[%emt 0:00:20]} 7. Be2 {[%emt 0:02:18]} Be7 {[%emt 0:00:44]} 8. O-O {[%emt 0:00:19]} O-O {[%emt 0:00:07]} 9. Rd1 {[%emt 0:00:34]} Qc7 {[%emt 0:00:46]} 10. c4 {[%emt 0:02:59]} Nb4 {[%emt 0:08:41]} 11. Qb3 {[%emt 0:11:30]} d5 {[%emt 0:17:09]} 12. exd5 {[%emt 0:03:03]} exd5 {[%emt 0:00:06]} 13. a3 {[%emt 0:04:14]} dxc4 {[%emt 0:02:32]} 14. Bxc4 {[%emt 0:00:14]} Nc6 {[%emt 0:00:07]} 15. Ng5 {[%emt 0:09:38]} Ne5 {[%emt 0:00:38]} 16. Be2 {[%emt 0:06:04]} h6 {[%emt 0:09:38]} 17. Nf3 {[%emt 0:02:22]} Be6 {[%emt 0:08:56]} 18. Qe3 {[%emt 0:03:32]} Nxf3+ {[%emt 0:00:50]} 19. Bxf3 {[%emt 0:00:25]} Bc5 {[%emt 0:00:15]} 20. Qe2 {[%emt 0:02:27]} Rfe8 {[%emt 0:02:53]} 21. Qb5 {[%emt 0:05:06]} Rad8 {[%emt 0:07:19]} 22. Nc3 {[%emt 0:04:32]} Bc4 {[%emt 0:02:45]} 23. Qxb7 {[%emt 0:03:59]} Qxb7 {[%emt 0:00:09]} 24. Bxb7 {[%emt 0:00:06]} Rxd1+ {[%emt 0:00:05]} 25. Nxd1 {[%emt 0:00:10]} Re1+ {[%emt 0:00:03]} 26. Kh2 {[%emt 0:01:44]} Rxd1 {[%emt 0:00:05]} 0-1

[Event "EYCC Girls-U12 2019"]
[Site "Bratislava"]
[Date "2019.08.02"]
[Round "1.4"]
[White "Manko, Mariya"]
[Black "Shukurova, Aydan"]
[Result "1-0"]
[ECO "A06"]
[WhiteElo "1807"]
[BlackElo "1372"]
[Annotator "NA"]
[PlyCount "167"]
[EventDate "2019.08.02"]
[EventType "swiss"]
[EventCountry "SVK"]
[SourceTitle "playchess.com"]
[Source "ChessBase"]
[SourceQuality "1"]
[TimeControl "40/5400+30:1800+30"]

1. Nf3 {[%emt 0:00:00]} d5 {[%emt 0:00:00]} 2. c4 {[%emt 0:00:00]} c6 {[%emt 0:00:12]} 3. g3 {[%emt 0:00:31]} Nf6 {[%emt 0:00:12]} 4. Bg2 {[%emt 0:00:51]} Bf5 {[%emt 0:00:23]} 5. O-O {[%emt 0:01:55]} e6 {[%emt 0:00:09]} 6. b3 {[%emt 0:00:38]} h6 {[%emt 0:00:30]} 7. d3 {[%emt 0:00:40]} Be7 {[%emt 0:00:16]} 8. Bb2 {[%emt 0:00:35]} O-O {[%emt 0:03:26]} 9. Nbd2 {[%emt 0:00:24]} Nbd7 {[%emt 0:02:18]} 10. Rc1 {[%emt 0:01:34]} Re8 {[%emt 0:01:38]} 11. Rc2 {[%emt 0:01:26]} Rc8 {[%emt 0:02:14]} 12. Qa1 {[%emt 0:00:37]} Bf8 {[%emt 0:07:07]} 13. Rfc1 {[%emt 0:03:44]} Bh7 {[%emt 0:09:22]} 14. Nf1 {[%emt 0:25:28]} dxc4 {[%emt 0:03:29]} 15. Rxc4 {[%emt 0:01:16]} Be7 {[%emt 0:01:03]} 16. Ne3 {[%emt 0:02:46]} Nb6 {[%emt 0:00:34]} 17. R4c2 {[%emt 0:02:20]} Bf8 {[%emt 0:08:20]} 18. a3 {[%emt 0:14:08]} a5 {[%emt 0:00:53]} 19. Nc4 {[%emt 0:03:05]} Ra8 {[%emt 0:04:24]} 20. Nfd2 {[%emt 0:07:39]} Nbd7 {[%emt 0:02:34]} 21. Ne5 {[%emt 0:04:19]} Nxe5 {[%emt 0:03:52]} 22. Bxe5 {[%emt 0:00:09]} Bd6 {[%emt 0:00:14]} 23. Bb2 {[%emt 0:03:01]} Qe7 {[%emt 0:00:40]} 24. Nc4 {[%emt 0:03:01]} Red8 {[%emt 0:02:12]} 25. Nxd6 {[%emt 0:01:47]} Rxd6 {[%emt 0:00:25]} 26. Rc4 {[%emt 0:00:47]} Ne8 {[%emt 0:03:11]} 27. h3 {[%emt 0:15:57]} f6 {[%emt 0:00:56]} 28. f4 {[%emt 0:03:25]} Nc7 {[%emt 0:01:07]} 29. Bd4 {[%emt 0:01:35]} Rd7 {[%emt 0:01:29]} 30. Rd1 {[%emt 0:00:51]} Rad8 {[%emt 0:02:45]} 31. Bc5 {[%emt 0:00:15]} Qf7 {[%emt 0:00:23]} 32. Qc3 {[%emt 0:00:39]} Ra8 {[%emt 0:00:55]} 33. e4 {[%emt 0:00:27]} Nb5 {[%emt 0:00:12]} 34. Qb2 {[%emt 0:00:37]} Rad8 {[%emt 0:01:21]} 35. a4 {[%emt 0:00:19]} Nd6 {[%emt 0:00:41]} 36. Rd4 {[%emt 0:00:28]} Nc8 {[%emt 0:00:33]} 37. Rxd7 {[%emt 0:00:09]} Rxd7 {[%emt 0:00:48]} 38. Be3 {[%emt 0:00:39]} Qf8 {[%emt 0:06:32]} 39. Qc3 {[%emt 0:00:45]} Qd8 {[%emt 0:01:23]} 40. Qc4 {[%emt 0:00:00]} Qe7 {[%emt 0:00:00]} 41. Bc5 {[%emt 0:03:04]} Qf7 {[%emt 0:00:47]} 42. Qc3 {[%emt 0:00:33]} b6 {[%emt 0:01:00]} 43. Be3 {[%emt 0:00:54]} c5 {[%emt 0:03:40]} 44. Rc1 {[%emt 0:04:13]} Nd6 {[%emt 0:02:49]} 45. Rf1 {[%emt 0:07:52]} Ne8 46. d4 {[%emt 0:00:36]} cxd4 {[%emt 0:01:21]} 47. Bxd4 {[%emt 0:00:17]} Rc7 {[%emt 0:02:04]} 48. Qe3 {[%emt 0:00:48]} Rc2 49. Bxb6 {[%emt 0:02:50]} Qd7 {[%emt 0:09:35]} 50. Bxa5 {[%emt 0:01:49]} Qc6 {[%emt 0:00:40]} 51. Rf2 {[%emt 0:01:02]} Rc1+ {[%emt 0:00:21]} 52. Kh2 {[%emt 0:00:25]} Rd1 {[%emt 0:00:36]} 53. e5 {[%emt 0:00:59]} Qd7 {[%emt 0:00:22]} 54. Rd2 {[%emt 0:01:04]} Rxd2 {[%emt 0:00:05]} 55. Qxd2 {[%emt 0:00:16]} Qxd2 {[%emt 0:00:10]} 56. Bxd2 {[%emt 0:00:06]} fxe5 {[%emt 0:00:34]} 57. fxe5 {[%emt 0:00:04]} Nc7 {[%emt 0:00:27]} 58. b4 {[%emt 0:00:11]} Bc2 {[%emt 0:00:07]} 59. b5 {[%emt 0:01:44]} Bxa4 {[%emt 0:00:26]} 60. b6 {[%emt 0:00:04]} Na6 {[%emt 0:00:37]} 61. b7 {[%emt 0:00:38]} Nb8 {[%emt 0:00:44]} 62. Be3 {[%emt 0:00:41]} Kf7 {[%emt 0:00:21]} 63. Ba7 {[%emt 0:00:19]} Nd7 {[%emt 0:00:08]} 64. b8=Q {[%emt 0:00:44]} Nxb8 {[%emt 0:00:05]} 65. Bxb8 Bb3 {[%emt 0:00:19]} 66. g4 {[%emt 0:00:32]} Kg6 {[%emt 0:00:19]} 67. Bf3 {[%emt 0:00:51]} Ba2 {[%emt 0:00:22]} 68. Kg3 {[%emt 0:00:08]} Bc4 {[%emt 0:00:06]} 69. Kf4 {[%emt 0:00:17]} Bb3 {[%emt 0:00:29]} 70. h4 {[%emt 0:00:14]} Bc4 {[%emt 0:00:04]} 71. Ke3 {[%emt 0:00:28]} Ba2 {[%emt 0:00:21]} 72. Kd4 {[%emt 0:00:05]} Kf7 {[%emt 0:00:24]} 73. Kc5 {[%emt 0:01:03]} Ke7 {[%emt 0:00:41]} 74. Bd6+ {[%emt 0:00:08]} Kf7 {[%emt 0:00:09]} 75. Kc6 {[%emt 0:00:22]} Bc4 {[%emt 0:00:17]} 76. Kd7 {[%emt 0:00:16]} g5 {[%emt 0:02:18]} 77. h5 {[%emt 0:00:19]} Bb3 {[%emt 0:00:10]} 78. Kd8 {[%emt 0:01:05]} Ba4 {[%emt 0:00:12]} 79. Be4 {[%emt 0:04:04]} Bd1 {[%emt 0:00:40]} 80. Bg6+ {[%emt 0:00:04]} Kg8 {[%emt 0:00:39]} 81. Ke8 {[%emt 0:00:58]} Bxg4 {[%emt 0:00:27]} 82. Bf8 {[%emt 0:00:10]} Bh3 {[%emt 0:00:45]} 83. Bxh6 {[%emt 0:00:35]} Bg4 {[%emt 0:00:14]} 84. Bxg5 {[%emt 0:00:19]} 1-0

[Event "EYCC Girls-U12 2019"]
[Site "Bratislava"]
[Date "2019.08.02"]
[Round "1.5"]
[White "Salajan, Stefania"]
[Black "Karmanova, Olga Dm."]
[Result "0-1"]
[ECO "B18"]
[WhiteElo "1482"]
[BlackElo "1838"]
[Annotator "NA"]
[PlyCount "120"]
[EventDate "2019.08.02"]
[EventType "swiss"]
[EventCountry "SVK"]
[SourceTitle "playchess.com"]
[Source "ChessBase"]
[SourceQuality "1"]
[TimeControl "40/5400+30:1800+30"]

1. e4 {[%emt 0:00:00]} c6 {[%emt 0:00:00]} 2. d4 {[%emt 0:00:45]} d5 {[%emt 0:00:00]} 3. Nc3 {[%emt 0:00:24]} dxe4 {[%emt 0:00:10]} 4. Nxe4 {[%emt 0:00:14]} Bf5 {[%emt 0:02:29]} 5. Ng3 {[%emt 0:01:58]} Bg6 {[%emt 0:00:21]} 6. Nf3 {[%emt 0:01:22]} Nd7 {[%emt 0:02:09]} 7. Bd3 {[%emt 0:04:38]} Bxd3 {[%emt 0:00:51]} 8. Qxd3 {[%emt 0:00:05]} e6 {[%emt 0:01:22]} 9. O-O {[%emt 0:02:14]} Ngf6 {[%emt 0:02:07]} 10. Re1 {[%emt 0:02:38]} Be7 {[%emt 0:01:06]} 11. b3 {[%emt 0:11:43]} O-O {[%emt 0:02:52]} 12. Bb2 {[%emt 0:02:37]} Nb6 {[%emt 0:03:05]} 13. c4 {[%emt 0:04:57]} Qc7 {[%emt 0:03:01]} 14. Rad1 {[%emt 0:05:08]} Rad8 {[%emt 0:05:10]} 15. Qe2 {[%emt 0:02:53]} Rfe8 {[%emt 0:03:03]} 16. Ne4 {[%emt 0:06:30]} Nxe4 {[%emt 0:06:21]} 17. Qxe4 {[%emt 0:00:09]} Bf6 {[%emt 0:00:56]} 18. Ne5 {[%emt 0:08:16]} a5 {[%emt 0:08:20]} 19. Qc2 {[%emt 0:07:36]} Nc8 {[%emt 0:06:46]} 20. g3 {[%emt 0:07:36]} Ne7 {[%emt 0:02:45]} 21. Ng4 {[%emt 0:03:43]} Bg5 {[%emt 0:09:45]} 22. h4 {[%emt 0:02:01]} Bf6 {[%emt 0:04:56]} 23. Nxf6+ {[%emt 0:00:45]} gxf6 {[%emt 0:00:06]} 24. Qe2 {[%emt 0:02:49]} h6 {[%emt 0:12:39]} 25. Qh5 {[%emt 0:04:07]} Kg7 {[%emt 0:03:11]} 26. Bc1 {[%emt 0:02:08]} Rh8 {[%emt 0:01:04]} 27. Qg4+ {[%emt 0:05:24]} Ng6 {[%emt 0:03:42]} 28. h5 {[%emt 0:04:09]} f5 {[%emt 0:00:15]} 29. Bf4 {[%emt 0:03:07]} Qxf4 {[%emt 0:02:31]} 30. Qxf4 {[%emt 0:00:20]} Nxf4 {[%emt 0:00:07]} 31. gxf4 {[%emt 0:00:03]} Kf6 {[%emt 0:00:25]} 32. Kh2 {[%emt 0:00:47]} Rhg8 {[%emt 0:01:27]} 33. f3 {[%emt 0:00:40]} Rd7 {[%emt 0:01:36]} 34. Re2 {[%emt 0:02:38]} Rgd8 {[%emt 0:00:42]} 35. Red2 {[%emt 0:00:12]} b5 {[%emt 0:02:34]} 36. c5 {[%emt 0:00:04]} b4 {[%emt 0:01:02]} 37. Kg2 {[%emt 0:00:49]} a4 {[%emt 0:00:53]} 38. bxa4 {[%emt 0:01:30]} Ra7 {[%emt 0:00:13]} 39. Rb1 {[%emt 0:00:33]} Rxa4 {[%emt 0:00:08]} 40. Rb3 {[%emt 0:00:00]} Ke7 {[%emt 0:00:00]} 41. Kf2 {[%emt 0:02:07]} Rd7 {[%emt 0:06:00]} 42. Ke2 {[%emt 0:02:47]} Rda7 {[%emt 0:01:00]} 43. Rbb2 {[%emt 0:03:56]} Ra8 {[%emt 0:02:30]} 44. Kf2 {[%emt 0:05:36]} Kf6 {[%emt 0:00:31]} 45. Ke2 {[%emt 0:00:37]} Ke7 {[%emt 0:03:10]} 46. Kf2 {[%emt 0:00:12]} Kd7 {[%emt 0:00:04]} 47. Ke2 {[%emt 0:02:00]} Kc7 {[%emt 0:00:42]} 48. Kf2 {[%emt 0:02:52]} Kb7 {[%emt 0:00:33]} 49. a3 {[%emt 0:03:16]} Ka6 {[%emt 0:00:36]} 50. Rb3 {[%emt 0:05:32]} Rd8 {[%emt 0:02:38]} 51. Rxb4 {[%emt 0:03:53]} Rxb4 {[%emt 0:00:05]} 52. axb4 {[%emt 0:00:06]} Kb5 {[%emt 0:02:50]} 53. Ke3 {[%emt 0:01:26]} Ra8 {[%emt 0:01:40]} 54. Ke2 {[%emt 0:02:22]} Ra3 {[%emt 0:00:33]} 55. Rd3 {[%emt 0:00:37]} Rxd3 {[%emt 0:01:28]} 56. Kxd3 {[%emt 0:00:05]} Kxb4 {[%emt 0:00:05]} 57. d5 {[%emt 0:00:32]} Kxc5 {[%emt 0:00:21]} 58. dxc6 {[%emt 0:00:19]} Kxc6 {[%emt 0:00:05]} 59. Kc4 {[%emt 0:00:12]} f6 {[%emt 0:00:10]} 60. Kd4 {[%emt 0:00:29]} Kb5 {[%emt 0:00:24]} 0-1

[Event "EYCC Girls-U12 2019"]
[Site "Bratislava"]
[Date "2019.08.02"]
[Round "1.6"]
[White "Zhapova, Yana"]
[Black "Budagova, Leyla"]
[Result "1-0"]
[ECO "B70"]
[WhiteElo "1809"]
[BlackElo "1442"]
[Annotator "NA"]
[PlyCount "107"]
[EventDate "2019.08.02"]
[EventType "swiss"]
[EventCountry "SVK"]
[SourceTitle "playchess.com"]
[Source "ChessBase"]
[SourceQuality "1"]
[TimeControl "40/5400+30:1800+30"]

1. e4 {[%emt 0:00:00]} c5 {[%emt 0:00:00]} 2. Nf3 {[%emt 0:00:00]} d6 {[%emt 0:00:00]} 3. d4 {[%emt 0:00:15]} cxd4 {[%emt 0:00:00]} 4. Nxd4 {[%emt 0:00:14]} Nf6 {[%emt 0:00:02]} 5. Nc3 {[%emt 0:00:14]} g6 {[%emt 0:00:30]} 6. Be2 {[%emt 0:01:02]} Bg7 {[%emt 0:00:49]} 7. O-O {[%emt 0:00:20]} O-O {[%emt 0:01:03]} 8. Re1 {[%emt 0:01:44]} Bd7 {[%emt 0:03:01]} 9. Bf1 {[%emt 0:02:20]} Nc6 {[%emt 0:01:26]} 10. Nb3 {[%emt 0:01:00]} Rc8 {[%emt 0:06:18]} 11. Bg5 {[%emt 0:00:58]} Ne5 {[%emt 0:09:44]} 12. Nd5 {[%emt 0:07:54]} Nxd5 {[%emt 0:06:29]} 13. exd5 {[%emt 0:00:25]} h6 {[%emt 0:05:15]} 14. Bh4 {[%emt 0:03:59]} g5 {[%emt 0:02:56]} 15. Bg3 {[%emt 0:00:09]} Ng6 {[%emt 0:01:37]} 16. c3 {[%emt 0:08:40]} f5 {[%emt 0:03:10]} 17. Bd3 {[%emt 0:09:00]} Be8 {[%emt 0:12:01]} 18. f3 {[%emt 0:03:06]} h5 {[%emt 0:04:48]} 19. Bf2 {[%emt 0:04:11]} g4 {[%emt 0:05:13]} 20. Bd4 {[%emt 0:03:55]} Be5 {[%emt 0:10:22]} 21. fxg4 {[%emt 0:12:51]} hxg4 {[%emt 0:03:41]} 22. Qd2 {[%emt 0:01:27]} Bf4 {[%emt 0:02:03]} 23. Qf2 {[%emt 0:05:56]} Bd7 {[%emt 0:06:37]} 24. Rad1 {[%emt 0:07:57]} b6 {[%emt 0:00:49]} 25. c4 {[%emt 0:08:13]} Rf7 {[%emt 0:02:47]} 26. Bc3 {[%emt 0:02:17]} Qf8 {[%emt 0:04:20]} 27. Nd4 {[%emt 0:02:08]} Be5 {[%emt 0:03:06]} 28. g3 {[%emt 0:08:54]} Rd8 {[%emt 0:01:42]} 29. Rf1 {[%emt 0:00:27]} Bxd4 {[%emt 0:00:34]} 30. Bxd4 {[%emt 0:00:12]} Ne5 {[%emt 0:00:33]} 31. Be2 {[%emt 0:00:59]} Rc8 {[%emt 0:00:20]} 32. b3 {[%emt 0:01:08]} e6 {[%emt 0:01:28]} 33. dxe6 {[%emt 0:00:33]} Bxe6 {[%emt 0:00:09]} 34. Qf4 {[%emt 0:00:06]} Ng6 {[%emt 0:01:13]} 35. Qg5 {[%emt 0:00:25]} Kh7 {[%emt 0:00:11]} 36. Qh5+ {[%emt 0:00:42]} Qh6 {[%emt 0:00:16]} 37. Qxh6+ {[%emt 0:00:11]} Kxh6 {[%emt 0:00:09]} 38. Be3+ {[%emt 0:00:03]} Kh7 {[%emt 0:00:20]} 39. Rxd6 {[%emt 0:00:21]} Re8 {[%emt 0:00:40]} 40. Bg5 {[%emt 0:00:00]} Ne5 {[%emt 0:00:00]} 41. Bf4 {[%emt 0:07:00]} Nd7 {[%emt 0:03:09]} 42. h3 {[%emt 0:07:13]} Nc5 {[%emt 0:02:38]} 43. hxg4 {[%emt 0:08:18]} Ne4 {[%emt 0:01:11]} 44. Rd4 {[%emt 0:02:03]} Nc3 {[%emt 0:01:13]} 45. Bd3 {[%emt 0:00:42]} Nxa2 {[%emt 0:01:46]} 46. Bd2 {[%emt 0:00:51]} a5 {[%emt 0:01:23]} 47. gxf5 {[%emt 0:00:43]} Bc8 {[%emt 0:01:22]} 48. f6+ {[%emt 0:01:27]} Kh8 {[%emt 0:00:26]} 49. Bg6 {[%emt 0:00:35]} Rff8 {[%emt 0:03:54]} 50. Bxe8 {[%emt 0:00:15]} Rxe8 {[%emt 0:07:54]} 51. Rh4+ {[%emt 0:00:01]} Kg8 {[%emt 0:01:07]} 52. f7+ {[%emt 0:00:04]} Kf8 {[%emt 0:01:39]} 53. Rh8+ {[%emt 0:00:01]} Kg7 {[%emt 0:00:32]} 54. fxe8=Q {[%emt 0:00:06]} 1-0

[Event "EYCC Girls-U12 2019"]
[Site "Bratislava"]
[Date "2019.08.02"]
[Round "1.7"]
[White "Selvik, Elma"]
[Black "Vlasova, Olesia"]
[Result "0-1"]
[ECO "B39"]
[WhiteElo "1496"]
[BlackElo "1799"]
[Annotator "NA"]
[PlyCount "110"]
[EventDate "2019.08.02"]
[EventType "swiss"]
[EventCountry "SVK"]
[SourceTitle "playchess.com"]
[Source "ChessBase"]
[SourceQuality "1"]
[TimeControl "40/5400+30:1800+30"]

1. e4 {[%emt 0:00:00]} c5 {[%emt 0:00:00]} 2. Nf3 {[%emt 0:00:00]} Nc6 {[%emt 0:00:00]} 3. d4 {[%emt 0:00:21]} cxd4 {[%emt 0:00:00]} 4. Nxd4 {[%emt 0:08:44]} g6 {[%emt 0:00:00]} 5. c4 {[%emt 0:00:28]} Bg7 {[%emt 0:00:33]} 6. Be3 {[%emt 0:01:57]} Nf6 {[%emt 0:00:08]} 7. Nc3 {[%emt 0:02:44]} Ng4 {[%emt 0:00:57]} 8. Qxg4 {[%emt 0:01:48]} Bxd4 {[%emt 0:00:03]} 9. Bxd4 {[%emt 0:02:25]} Nxd4 {[%emt 0:00:05]} 10. Qd1 {[%emt 0:02:21]} e5 {[%emt 0:00:06]} 11. Qd2 {[%emt 0:04:04]} O-O {[%emt 0:01:50]} 12. Be2 {[%emt 0:02:40]} d6 {[%emt 0:02:38]} 13. O-O {[%emt 0:02:49]} Be6 {[%emt 0:01:37]} 14. Rad1 {[%emt 0:06:53]} Rc8 {[%emt 0:04:09]} 15. b3 {[%emt 0:03:57]} a6 {[%emt 0:00:58]} 16. Bd3 {[%emt 0:16:43]} Qb6 {[%emt 0:04:50]} 17. Ne2 {[%emt 0:04:57]} Bg4 {[%emt 0:01:46]} 18. Kh1 {[%emt 0:08:09]} Bxe2 {[%emt 0:00:13]} 19. Bxe2 {[%emt 0:00:25]} Qd8 {[%emt 0:01:38]} 20. Bg4 {[%emt 0:06:10]} Rc7 {[%emt 0:01:45]} 21. Qh6 {[%emt 0:04:17]} Qf6 {[%emt 0:04:31]} 22. Rd3 {[%emt 0:03:57]} Qg7 {[%emt 0:00:14]} 23. Qg5 {[%emt 0:01:24]} f6 {[%emt 0:00:52]} 24. Qd2 {[%emt 0:00:55]} Ra8 {[%emt 0:04:33]} 25. Qb4 {[%emt 0:03:12]} Qe7 {[%emt 0:07:48]} 26. Rg3 {[%emt 0:01:47]} b5 {[%emt 0:05:32]} 27. Rc1 {[%emt 0:02:32]} a5 {[%emt 0:02:28]} 28. Qd2 {[%emt 0:02:25]} bxc4 {[%emt 0:02:07]} 29. Rgc3 {[%emt 0:02:28]} a4 {[%emt 0:02:25]} 30. bxc4 {[%emt 0:02:02]} Rc5 {[%emt 0:01:28]} 31. Ra3 {[%emt 0:01:02]} Qb7 {[%emt 0:02:20]} 32. Qd1 {[%emt 0:01:07]} Qxe4 {[%emt 0:09:35]} 33. Bf3 {[%emt 0:01:05]} Nxf3 {[%emt 0:00:40]} 34. Qxf3 {[%emt 0:00:29]} Qxf3 {[%emt 0:02:11]} 35. Rxf3 {[%emt 0:00:09]} Kf7 {[%emt 0:00:28]} 36. Kg1 {[%emt 0:00:29]} Rac8 {[%emt 0:00:46]} 37. Kf1 {[%emt 0:01:01]} Rxc4 {[%emt 0:00:08]} 38. Rd1 {[%emt 0:00:27]} Rc1 {[%emt 0:01:01]} 39. Rfd3 {[%emt 0:00:25]} Rxd1+ {[%emt 0:00:08]} 40. Rxd1 {[%emt 0:00:00]} Ke6 {[%emt 0:00:00]} 41. Ke2 {[%emt 0:01:52]} Rc2+ {[%emt 0:00:13]} 42. Rd2 {[%emt 0:00:53]} Rxd2+ {[%emt 0:00:12]} 43. Kxd2 {[%emt 0:00:09]} Kd5 {[%emt 0:00:16]} 44. Kc3 {[%emt 0:00:59]} Kc5 {[%emt 0:00:05]} 45. h3 {[%emt 0:03:58]} d5 {[%emt 0:00:04]} 46. a3 {[%emt 0:03:38]} e4 {[%emt 0:00:07]} 47. Kc2 {[%emt 0:02:32]} Kc4 {[%emt 0:00:06]} 48. g4 {[%emt 0:01:13]} d4 {[%emt 0:00:05]} 49. h4 {[%emt 0:01:59]} e3 {[%emt 0:00:17]} 50. fxe3 {[%emt 0:02:49]} dxe3 {[%emt 0:00:10]} 51. Kd1 {[%emt 0:02:47]} Kd3 {[%emt 0:00:06]} 52. Ke1 {[%emt 0:01:42]} e2 {[%emt 0:00:06]} 53. h5 {[%emt 0:01:01]} gxh5 {[%emt 0:00:08]} 54. gxh5 {[%emt 0:00:15]} h6 {[%emt 0:00:04]} 55. Kf2 {[%emt 0:00:48]} Kd2 0-1

[Event "EYCC Girls-U12 2019"]
[Site "Bratislava"]
[Date "2019.08.02"]
[Round "1.8"]
[White "Huang, Wendy"]
[Black "Levchenko, Marina"]
[Result "1/2-1/2"]
[ECO "B93"]
[WhiteElo "1784"]
[BlackElo "1429"]
[Annotator "NA"]
[PlyCount "95"]
[EventDate "2019.08.02"]
[EventType "swiss"]
[EventCountry "SVK"]
[SourceTitle "playchess.com"]
[Source "ChessBase"]
[SourceQuality "1"]
[TimeControl "40/5400+30:1800+30"]

1. e4 {[%emt 0:00:00]} c5 {[%emt 0:00:00]} 2. Nf3 {[%emt 0:00:00]} d6 {[%emt 0:00:00]} 3. d4 {[%emt 0:00:00]} cxd4 {[%emt 0:00:00]} 4. Nxd4 {[%emt 0:00:00]} Nf6 {[%emt 0:00:00]} 5. Nc3 {[%emt 0:00:00]} a6 {[%emt 0:00:00]} 6. f4 {[%emt 0:00:57]} e6 {[%emt 0:00:44]} 7. a4 {[%emt 0:01:10]} Be7 {[%emt 0:01:32]} 8. Bc4 {[%emt 0:04:07]} Nxe4 {[%emt 0:09:06]} 9. Nxe4 {[%emt 0:02:09]} d5 {[%emt 0:00:07]} 10. Bd3 {[%emt 0:02:22]} dxe4 {[%emt 0:00:19]} 11. Bxe4 {[%emt 0:00:12]} Qc7 {[%emt 0:03:02]} 12. O-O {[%emt 0:13:56]} O-O {[%emt 0:04:35]} 13. Nb3 {[%emt 0:02:59]} Bd7 {[%emt 0:04:12]} 14. Kh1 {[%emt 0:04:38]} Bc6 {[%emt 0:02:14]} 15. Qe2 {[%emt 0:02:42]} Bxe4 {[%emt 0:05:15]} 16. Qxe4 {[%emt 0:00:16]} Nc6 {[%emt 0:00:06]} 17. Be3 {[%emt 0:03:26]} a5 {[%emt 0:06:07]} 18. c3 {[%emt 0:04:58]} Bf6 {[%emt 0:05:21]} 19. Rad1 {[%emt 0:03:22]} Rfd8 {[%emt 0:08:13]} 20. Qf3 {[%emt 0:03:58]} Ne7 {[%emt 0:12:49]} 21. Nd4 {[%emt 0:15:48]} Bxd4 {[%emt 0:06:18]} 22. Bxd4 {[%emt 0:00:28]} Nc6 {[%emt 0:04:26]} 23. Be3 {[%emt 0:02:32]} Ne7 {[%emt 0:06:26]} 24. g3 {[%emt 0:13:11]} Nf5 {[%emt 0:05:18]} 25. Bf2 {[%emt 0:05:05]} b6 {[%emt 0:07:20]} 26. Kg1 {[%emt 0:02:50]} Ne7 {[%emt 0:01:42]} 27. Bd4 {[%emt 0:03:22]} Nc6 {[%emt 0:00:20]} 28. Be3 {[%emt 0:00:39]} Ne7 {[%emt 0:02:28]} 29. Qe2 {[%emt 0:02:05]} Nf5 {[%emt 0:01:09]} 30. Bf2 {[%emt 0:01:03]} Qc6 {[%emt 0:01:42]} 31. Qb5 {[%emt 0:01:02]} Qxb5 {[%emt 0:01:01]} 32. axb5 {[%emt 0:00:05]} Rdb8 {[%emt 0:03:07]} 33. Rd7 {[%emt 0:02:24]} Kf8 {[%emt 0:00:43]} 34. Rfd1 {[%emt 0:00:41]} Ke8 {[%emt 0:00:37]} 35. g4 {[%emt 0:01:30]} Ne7 {[%emt 0:00:31]} 36. c4 {[%emt 0:02:11]} Nd5 {[%emt 0:00:34]} 37. Rd6 {[%emt 0:00:09]} Ke7 {[%emt 0:00:35]} 38. Rc6 {[%emt 0:00:31]} Nxf4 {[%emt 0:00:28]} 39. Bxb6 {[%emt 0:00:41]} Ng6 {[%emt 0:00:30]} 40. c5 {[%emt 0:00:00]} Ne5 {[%emt 0:00:00]} 41. Rc7+ {[%emt 0:01:16]} Kf6 {[%emt 0:03:08]} 42. Rf1+ {[%emt 0:04:41]} Kg5 {[%emt 0:05:52]} 43. Re7 {[%emt 0:03:00]} Nc4 {[%emt 0:13:59]} 44. Rfxf7 {[%emt 0:05:38]} Nxb6 {[%emt 0:03:51]} 45. Rxg7+ {[%emt 0:01:18]} Kf4 {[%emt 0:01:56]} 46. cxb6 {[%emt 0:04:58]} Rxb6 {[%emt 0:00:44]} 47. Rxh7 {[%emt 0:01:24]} Kxg4 {[%emt 0:02:10]} 48. Rb7 {[%emt 0:03:06]} 1/2-1/2